Workbook

Sheet Instructions
A1: Important Read carefully First: Must only run the following sequence of steps to be consistent
A3: 1. To change the realizations for either case spreadsheet you must do the following in the spreadsheet with the case you are running
A4: 2. In this case the news headlines and future spot rates of interest must be consistent with each other
A5: 3. In the case spreadsheet use the Function 9 key to generate a new state realizations
A6: 4. To free the realizations click on Run freeze (Ctrl f) -- this freezes the realizations
A7: 3. Function 9 to update headlines and interest rates (can be done several times to check headlines, but underlying state is frozen)
A8: 4. Run update divs (Ctrl u) builds correct rates given freeze
A10: The above generates new paths for the economy with consistent headlines

Sheet GC1
A1: Number of Securities | B1: 5 | C1: Name | D1: Cp Bnd | E1: Zero 2 | F1: Zero 3 | G1: Zero 4 | H1: Zero 5 | O1: ***Important Note: Must only run the following sequence of steps to be consistent
A2: Maximum Number of Trials | B2: 10 | C2: Security Type | D2: Bond | E2: Bond | F2: Bond | G2: Bond | H2: Bond | O2: 1. Function 9 generate a new state (S2 draws)
A3: Number of Periods per Trial | B3: 5 | C3: Price Quotes | D3: Endogenous | E3: Endogenous | F3: Endogenous | G3: Endogenous | H3: Endogenous | O3: 2. Run freeze (Ctrl f) -- this freezes the realizations
A4: Period Length (seconds) | B4: 270/270/270/270/0 | C4: Start Life | D4: 1 | E4: 1 | F4: 1 | G4: 1 | H4: 1 | O4: 3. Function 9 to update headlines and interest rates (can be done several times to check headlines, but underlying state is frozen)
A5: Maximum Number of Traders | B5: 60 | C5: End Life | D5: 5 | E5: 2 | F5: 3 | G5: 4 | H5: 5 | O5: 4. Run update divs (Ctrl u) builds correct rates given freeze
A6: Number of Trader Types | B6: 2 | C6: Short Selling | D6: Yes | E6: Yes | F6: Yes | G6: Yes | H6: Yes
A7: Market Depth | B7: 20 | C7: Quote to Price Formula | D7: Quote | E7: Quote | F7: Quote | G7: Quote | H7: Quote
A8: Depth Displayed | B8: 10 | C8: Information | D8: Yes | E8: Yes | F8: Yes | G8: Yes | H8: Yes | V8: Time | W8: 300
A9: Borrowing Allowed | B9: Yes | J9: =6*60*60 -> 21600 | V9: Time periods | W9: Precision
A10: Last Row with Exogenous Prices | V10: 0.3 | W10: 12
A11: Number of Information Types | B11: 1 | W11: 10
A12: Last Row with Information | B12: 270 | W12: 8
W13: 6 | AC13: Exogenous Rates
W14: 4 | AC14: 0.01 | AD14: 0.01
AC15: 0.05 | AD15: 0.05
AC16: =+(AC15-AC14)/10 -> 0.004 | AD16: =+(AD15-AD14)/10 -> 0.004
A17: Recalculate | B17: No | C17: Autotrade | D17: Yes | E17: Yes | F17: Yes | G17: Yes | H17: Yes
X18: 270
B19: testx/testy/testz | AD19: Work area
A20: Trader Data | B20: Type 1 | C20: Type 2 | D20: Payoff and Settlement Data | E20: Security 1 | F20: Security 2 | G20: Security 3 | H20: Security 4 | I20: Security 5 | J20: Interest Rate | K20: Exogenous Prices | L20: Time into Period | M20: Cp Bnd Bid | N20: Cp Bnd Ask | O20: Zero1 Bid | P20: Zero1 Ask | Q20: Zero2 Bid | R20: Zero2 Ask | S20: Zero3 Bid | T20: Zero3 Ask | U20: Zero3 Bid | V20: Zero3 Ask | W20: Information | X20: Time into P | Y20: Rate- Info1 | Z20: Rate-Info2 | AA20: Rate-Info3 | AB20: Rate-Info4 | AD20: Freeze Area | AE20: S2 Draws | AF20: S1 Payoff | AI20: Precision
A21: Cash | B21: =+B96 -> 3952875.9 | C21: =+C96 -> 6064355.748 | D21: Trial 1 | E21: 5 | F21: 0 | G21: 0 | H21: 0 | I21: 0 | J21: 0.01999999955 | W21: Trial 1 | X21: =+(AZ21/300)*$X$18 -> 0 | Y21: =+B02Clue1(INT($AD21+RAND()*$AI21)) -> Inflationary expectations increased sharply | Z21: =+$Y21 -> Inflationary expectations increased sharply | AA21: Inflationary expectations increased sharply | AB21: Inflationary expectations increased sharply | AD21: 8 | AE21: =INT(1+RAND()*10) -> 6 | AF21: =+$AC$14+(AD21-1)*$AC$16+$AC$16*RAND() -> 0.03867658691 | AI21: 7 | AZ21: 0
A22: Endow 1 | B22: 100000 | C22: =-B22 -> -100000 | E22: 5 | F22: 100 | G22: 0 | H22: 0 | I22: 0 | J22: 0.03984337673 | X22: =+(AZ22/300)*$X$18 -> 46.8 | Y22: =+B02Clue1(INT($AD22+RAND()*$AI22)) -> Large jump in both imports and exports plus trade deficit sharply wider | Z22: Large jump in both imports and exports plus trade deficit sharply wider | AA22: Large jump in both imports and exports plus trade deficit sharply wider | AB22: Large jump in both imports and exports plus trade deficit sharply wider | AD22: 8 | AE22: =+AE21 -> 6 | AF22: 0.03867658691 | AI22: 5 | AZ22: =+INT($W$8*$V$10*RAND()+AZ21) -> 52
A23: Endow 2 | B23: 107900 | C23: =-B23 -> -107900 | E23: 5 | F23: 0 | G23: 100 | H23: 0 | I23: 0 | J23: 0.02673550136 | X23: 112.5 | Y23: =+B02Clue1(INT($AD23+RAND()*$AI23)) -> Analyst forecast increased earnings for most industries in the economy | Z23: Analyst forecast increased earnings for most industries in the economy | AA23: Analyst forecast increased earnings for most industries in the economy | AB23: Analyst forecast increased earnings for most industries in the economy | AD23: 8 | AE23: 6 | AF23: 0.03867658691 | AI23: 3 | AZ23: =+INT($W$8*$V$10*RAND()+AZ22) -> 125
A24: Endow 3 | B24: 110000 | C24: =B24 -> 110000 | E24: 5 | F24: 0 | G24: 0 | H24: 100 | I24: 0 | J24: 0.04043216258 | X24: 169.2 | Y24: =+B02Clue1(INT($AD24+RAND()*$AI24)) -> Factory orders expected to increase sharply | Z24: Factory orders expected to increase sharply | AA24: Factory orders expected to increase sharply | AB24: Factory orders expected to increase sharply | AD24: 8 | AE24: 6 | AF24: 0.03867658691 | AI24: 2 | AZ24: =+INT($W$8*$V$10*RAND()+AZ23) -> 188
A25: Endow 4 | B25: -115600 | C25: =-B25 -> 115600 | E25: 105 | F25: 0 | G25: 0 | H25: 0 | I25: 100 | J25: 0.04142972827 | X25: 224.1 | Y25: =+B02Clue1(INT($AD25+RAND()*$AI25)) -> Analyst forecast increased earnings for most industries in the economy | Z25: Analyst forecast increased earnings for most industries in the economy | AA25: Analyst forecast increased earnings for most industries in the economy | AB25: Analyst forecast increased earnings for most industries in the economy | AD25: 8 | AE25: 6 | AF25: 0.03867658691 | AI25: 1 | AZ25: =+INT($W$8*$V$10*RAND()+AZ24) -> 249
A26: Endow 5 | B26: -115600 | C26: =-B26 -> 115600 | D26: Trial 2 | E26: 5 | F26: 0 | G26: 0 | H26: 0 | I26: 0 | J26: 0.01999999955 | W26: Period2 | X26: =+(AZ26/300)*$X$18 -> 0 | Y26: =+B02Clue1(INT(0.6*$AD26+0.4*$AD21+RAND()*$AI26)) -> Large jump in both imports and exports plus trade deficit sharply wider | Z26: Large jump in both imports and exports plus trade deficit sharply wider | AA26: Large jump in both imports and exports plus trade deficit sharply wider | AB26: Large jump in both imports and exports plus trade deficit sharply wider | AD26: 5 | AE26: =INT(0.4*AE21+0.6*(1+RAND()*10)) -> 7 | AF26: =+$AC$14+(AD26-1)*$AC$16+$AC$16*RAND() -> 0.02797565698 | AI26: =+AI21 -> 7 | AZ26: 0
A27: Rights 1 | B27: 0 | C27: 0 | E27: 5 | F27: 100 | G27: 0 | H27: 0 | I27: 0 | J27: 0.01464824378 | X27: 36 | Y27: =+B02Clue1(INT(0.6*$AD27+0.4*$AD22+RAND()*$AI27)) -> Very strong and unexpected surge in the producer price index | Z27: Very strong and unexpected surge in the producer price index | AA27: Very strong and unexpected surge in the producer price index | AB27: Very strong and unexpected surge in the producer price index | AD27: 5 | AE27: =+AE26 -> 7 | AF27: =+AF26 -> 0.02797565698 | AI27: =+AI22 -> 5 | AZ27: =+INT($W$8*$V$10*RAND()+AZ26) -> 40
A28: Rights 2 | B28: 0 | C28: 0 | E28: 5 | F28: 0 | G28: 100 | H28: 0 | I28: 0 | J28: 0.01077211089 | X28: 71.1 | Y28: Factory orders expected to increase sharply | Z28: Factory orders expected to increase sharply | AA28: Factory orders expected to increase sharply | AB28: Factory orders expected to increase sharply | AD28: 5 | AE28: =+AE27 -> 7 | AF28: =+AF27 -> 0.02797565698 | AI28: 3 | AZ28: =+INT($W$8*$V$10*RAND()+AZ27) -> 79
A29: Rights 3 | B29: 0 | C29: 0 | E29: 5 | F29: 0 | G29: 0 | H29: 100 | I29: 0 | J29: 0.01027852762 | X29: 98.1 | Y29: Analyst forecast increased earnings for most industries in the economy | Z29: Analyst forecast increased earnings for most industries in the economy | AA29: Analyst forecast increased earnings for most industries in the economy | AB29: Analyst forecast increased earnings for most industries in the economy | AD29: 5 | AE29: =+AE28 -> 7 | AF29: 0.02797565698 | AI29: 2 | AZ29: =+INT($W$8*$V$10*RAND()+AZ28) -> 109
A30: Rights 4 | B30: 0 | C30: 0 | E30: 105 | F30: 0 | G30: 0 | H30: 0 | I30: 100 | J30: 0.01144359075 | X30: 120.6 | Y30: Leading indicators suggest positive economic outlook | Z30: Leading indicators suggest positive economic outlook | AA30: Leading indicators suggest positive economic outlook | AB30: Leading indicators suggest positive economic outlook | AD30: 5 | AE30: =+AE29 -> 7 | AF30: 0.02797565698 | AI30: 1 | AZ30: =+INT($W$8*$V$10*RAND()+AZ29) -> 134
A31: Rights 5 | B31: 0 | C31: 0 | D31: Trial 3 | E31: 5 | F31: 0 | G31: 0 | H31: 0 | I31: 0 | J31: 0.01999999955 | W31: Period3 | X31: =+(AZ31/300)*$X$18 -> 0 | Y31: =+B02Clue1(INT(0.6*$AD31+0.4*$AD26+RAND()*$AI31)) -> Much stronger economic growth is currently being forecast | Z31: Much stronger economic growth is currently being forecast | AA31: Much stronger economic growth is currently being forecast | AB31: Much stronger economic growth is currently being forecast | AD31: 8 | AE31: =INT(0.4*AE26+0.6*(1+RAND()*10)) -> 7 | AF31: =+$AC$14+(AD31-1)*$AC$16+$AC$16*RAND() -> 0.03905360766 | AI31: =+AI26 -> 7 | AZ31: 0
A32: Lower Bound | B32: -100000000 | C32: -100000000 | E32: 5 | F32: 100 | G32: 0 | H32: 0 | I32: 0 | J32: 0.02104049362 | X32: 19.8 | Y32: Consumer price index expected to surge | Z32: Consumer price index expected to surge | AA32: Consumer price index expected to surge | AB32: Consumer price index expected to surge | AD32: 8 | AE32: =+AE31 -> 7 | AF32: 0.03905360766 | AI32: 5 | AZ32: =+INT($W$8*$V$10*RAND()+AZ31) -> 22
A33: Lower Bound Payoff | B33: =+B32*$B$37 -> -10000 | C33: =+C32*$B$37 -> -10000 | E33: 5 | F33: 0 | G33: 100 | H33: 0 | I33: 0 | J33: 0.02645361051 | X33: 52.2 | Y33: Geopolitical investment concerns are rapidly fading | Z33: Geopolitical investment concerns are rapidly fading | AA33: Geopolitical investment concerns are rapidly fading | AB33: Geopolitical investment concerns are rapidly fading | AD33: 8 | AE33: =+AE32 -> 7 | AF33: 0.03905360766 | AI33: 3 | AZ33: =+INT($W$8*$V$10*RAND()+AZ32) -> 58
A34: Upper Bound | B34: 100000000 | C34: 100000000 | E34: 5 | F34: 0 | G34: 0 | H34: 100 | I34: 0 | J34: 0.03470784798 | X34: 127.8 | Y34: Leading indicators suggest positive economic outlook | Z34: Leading indicators suggest positive economic outlook | AA34: Leading indicators suggest positive economic outlook | AB34: Leading indicators suggest positive economic outlook | AD34: 8 | AE34: =+AE33 -> 7 | AF34: 0.03905360766 | AI34: 2 | AZ34: =+INT($W$8*$V$10*RAND()+AZ33) -> 142
A35: Upper Bound Payoff | B35: =+B34*$B$37 -> 10000 | C35: =+C34*$B$37 -> 10000 | E35: 105 | F35: 0 | G35: 0 | H35: 0 | I35: 100 | J35: 0.02371298522 | X35: 179.1 | Y35: Indicators are reinforcing a positive economic outlook | Z35: Indicators are reinforcing a positive economic outlook | AA35: Indicators are reinforcing a positive economic outlook | AB35: Indicators are reinforcing a positive economic outlook | AD35: 8 | AE35: =+AE34 -> 7 | AF35: 0.03905360766 | AI35: 1 | AZ35: =+INT($W$8*$V$10*RAND()+AZ34) -> 199
A36: Constant | B36: 0 | C36: 0 | D36: Trial 4 | E36: 5 | F36: 0 | G36: 0 | H36: 0 | I36: 0 | J36: 0.01999999955 | W36: Period4 | X36: =+(AZ36/300)*$X$18 -> 0 | Y36: =+B02Clue1(INT(0.6*$AD36+0.4*$AD31+RAND()*$AI36)) -> Consumer price index expected to surge | Z36: Consumer price index expected to surge | AA36: Consumer price index expected to surge | AB36: Consumer price index expected to surge | AD36: 8 | AE36: =INT(0.4*AE31+0.6*(1+RAND()*10)) -> 7 | AF36: =+$AC$14+(AD36-1)*$AC$16+$AC$16*RAND() -> 0.04095176474 | AI36: 7 | AZ36: 0
A37: Linear Coefficient | B37: 0.0001 | C37: 0.0001 | E37: 5 | F37: 100 | G37: 0 | H37: 0 | I37: 0 | J37: 0.03159919381 | X37: 31.5 | Y37: Large jump in both imports and exports plus trade deficit sharply wider | Z37: Large jump in both imports and exports plus trade deficit sharply wider | AA37: Large jump in both imports and exports plus trade deficit sharply wider | AB37: Large jump in both imports and exports plus trade deficit sharply wider | AD37: 8 | AE37: =+AE36 -> 7 | AF37: 0.04095176474 | AI37: 5 | AZ37: =+INT($W$8*$V$10*RAND()+AZ36) -> 35
A38: Quadratic Coefficient | B38: 0 | C38: 0 | E38: 5 | F38: 0 | G38: 100 | H38: 0 | I38: 0 | J38: 0.03382565826 | X38: 41.4 | Y38: Analyst forecast increased earnings for most industries in the economy | Z38: Analyst forecast increased earnings for most industries in the economy | AA38: Analyst forecast increased earnings for most industries in the economy | AB38: Analyst forecast increased earnings for most industries in the economy | AD38: 8 | AE38: =+AE37 -> 7 | AF38: 0.04095176474 | AI38: 3 | AZ38: =+INT($W$8*$V$10*RAND()+AZ37) -> 46
A39: Log Coefficient | B39: 0 | C39: 0 | E39: 5 | F39: 0 | G39: 0 | H39: 100 | I39: 0 | J39: 0.04003550485 | X39: 78.3 | Y39: Factory orders expected to increase sharply | Z39: Factory orders expected to increase sharply | AA39: Factory orders expected to increase sharply | AB39: Factory orders expected to increase sharply | AD39: 8 | AE39: =+AE38 -> 7 | AF39: 0.04095176474 | AI39: 2 | AZ39: =+INT($W$8*$V$10*RAND()+AZ38) -> 87
A40: CARA Coefficient | B40: 0 | C40: 0 | E40: 105 | F40: 0 | G40: 0 | H40: 0 | I40: 100 | J40: 0.02730731852 | X40: 121.5 | Y40: Analyst forecast increased earnings for most industries in the economy | Z40: Analyst forecast increased earnings for most industries in the economy | AA40: Analyst forecast increased earnings for most industries in the economy | AB40: Analyst forecast increased earnings for most industries in the economy | AD40: 8 | AE40: =+AE39 -> 7 | AF40: 0.04095176474 | AI40: 1 | AZ40: =+INT($W$8*$V$10*RAND()+AZ39) -> 135
A41: CARA Exponent | B41: 0 | C41: 0 | D41: Trial 5 | E41: 5 | F41: 0 | G41: 0 | H41: 0 | I41: 0 | J41: 0.01999999955 | W41: Period5 | X41: =+(AZ41/300)*$X$18 -> 0 | Y41: =+B02Clue1(INT(0.6*$AD41+0.4*$AD36+RAND()*$AI41)) -> Large jump in both imports and exports plus trade deficit sharply wider | Z41: =+$Y41 -> Large jump in both imports and exports plus trade deficit sharply wider | AA41: Large jump in both imports and exports plus trade deficit sharply wider | AB41: Large jump in both imports and exports plus trade deficit sharply wider | AD41: 6 | AE41: =INT(0.4*AE36+0.6*(1+RAND()*10)) -> 8 | AF41: =+$AC$14+(AD41-1)*$AC$16+$AC$16*RAND() -> 0.03111456674 | AI41: 7 | AZ41: 0
A42: HARA Coefficient | B42: 0 | C42: 0 | E42: 5 | F42: 100 | G42: 0 | H42: 0 | I42: 0 | J42: 0.03261736035 | X42: 80.1 | Y42: Inflationary expectations increased sharply | Z42: Inflationary expectations increased sharply | AA42: Inflationary expectations increased sharply | AB42: Inflationary expectations increased sharply | AD42: 6 | AE42: =+AE41 -> 8 | AF42: 0.03111456674 | AI42: 5 | AZ42: =+INT($W$8*$V$10*RAND()+AZ41) -> 89
A43: HARA Exponent | B43: 0 | C43: 0 | E43: 5 | F43: 0 | G43: 100 | H43: 0 | I43: 0 | J43: 0.03696885332 | X43: 130.5 | Y43: Factory orders expected to increase sharply | Z43: Factory orders expected to increase sharply | AA43: Factory orders expected to increase sharply | AB43: Factory orders expected to increase sharply | AD43: 6 | AE43: =+AE42 -> 8 | AF43: 0.03111456674 | AI43: 3 | AZ43: =+INT($W$8*$V$10*RAND()+AZ42) -> 145
E44: 5 | F44: 0 | G44: 0 | H44: 100 | I44: 0 | J44: 0.04063067958 | X44: 193.5 | Y44: Fed chairman congressional testimony provides optimism | Z44: Fed chairman congressional testimony provides optimism | AA44: Fed chairman congressional testimony provides optimism | AB44: Fed chairman congressional testimony provides optimism | AD44: 6 | AE44: =+AE43 -> 8 | AF44: 0.03111456674 | AI44: 2 | AZ44: =+INT($W$8*$V$10*RAND()+AZ43) -> 215
E45: 105 | F45: 0 | G45: 0 | H45: 0 | I45: 100 | J45: 0.04105107114 | X45: 258.3 | Y45: Fed chairman congressional testimony provides optimism | Z45: Fed chairman congressional testimony provides optimism | AA45: Fed chairman congressional testimony provides optimism | AB45: Fed chairman congressional testimony provides optimism | AD45: 6 | AE45: =+AE44 -> 8 | AF45: 0.03111456674 | AI45: 1 | AZ45: =+INT($W$8*$V$10*RAND()+AZ44) -> 287
D46: Trial 6 | E46: 5 | F46: 0 | G46: 0 | H46: 0 | I46: 0 | J46: 0.01999999955 | W46: Trial 2 | X46: =+(AZ46/300)*$X$18 -> 0 | Y46: =+B02Clue1(INT($AD46+RAND()*$AI46)) -> Analyst forecast increased earnings for most industries in the economy | Z46: Analyst forecast increased earnings for most industries in the economy | AA46: Analyst forecast increased earnings for most industries in the economy | AB46: Analyst forecast increased earnings for most industries in the economy | AD46: 2 | AE46: =INT(1+RAND()*10) -> 5 | AF46: =+$AC$14+(AD46-1)*$AC$16+$AC$16*RAND() -> 0.01560323365 | AI46: 7 | AZ46: 0
E47: 5 | F47: 100 | G47: 0 | H47: 0 | I47: 0 | J47: 0.04389565066 | X47: 70.2 | Y47: =+B02Clue1(INT($AD47+RAND()*$AI47)) -> Stock funds experiencing mild selling | Z47: Stock funds experiencing mild selling | AA47: Stock funds experiencing mild selling | AB47: Stock funds experiencing mild selling | AD47: 2 | AE47: =+AE46 -> 5 | AF47: 0.01560323365 | AI47: 5 | AZ47: =+INT($W$8*$V$10*RAND()+AZ46) -> 78
E48: 5 | F48: 0 | G48: 100 | H48: 0 | I48: 0 | J48: 0.03223536536 | X48: 75.6 | Y48: =+B02Clue1(INT($AD48+RAND()*$AI48)) -> Some major corporations have started to trim work force | Z48: Some major corporations have started to trim work force | AA48: Some major corporations have started to trim work force | AB48: Some major corporations have started to trim work force | AD48: 2 | AE48: 5 | AF48: 0.01560323365 | AI48: 3 | AZ48: =+INT($W$8*$V$10*RAND()+AZ47) -> 84
E49: 5 | F49: 0 | G49: 0 | H49: 100 | I49: 0 | J49: 0.03323446959 | X49: 88.2 | Y49: =+B02Clue1(INT($AD49+RAND()*$AI49)) -> Consumer confidence falls, signalling decline in spending | Z49: Consumer confidence falls, signalling decline in spending | AA49: Consumer confidence falls, signalling decline in spending | AB49: Consumer confidence falls, signalling decline in spending | AD49: 2 | AE49: 5 | AF49: 0.01560323365 | AI49: 2 | AZ49: =+INT($W$8*$V$10*RAND()+AZ48) -> 98
E50: 105 | F50: 0 | G50: 0 | H50: 0 | I50: 100 | J50: 0.03575604036 | X50: 157.5 | Y50: =+B02Clue1(INT($AD50+RAND()*$AI50)) -> Inventory buildup points to signs of recession | Z50: Inventory buildup points to signs of recession | AA50: Inventory buildup points to signs of recession | AB50: Inventory buildup points to signs of recession | AD50: 2 | AE50: 5 | AF50: 0.01560323365 | AI50: 1 | AZ50: =+INT($W$8*$V$10*RAND()+AZ49) -> 175
D51: Trial 7 | E51: 5 | F51: 0 | G51: 0 | H51: 0 | I51: 0 | J51: 0.01999999955 | W51: Period2 | X51: =+(AZ51/300)*$X$18 -> 0 | Y51: =+B02Clue1(INT(0.6*$AD51+0.4*$AD46+RAND()*$AI51)) -> Geopolitical concerns starting to worry investors | Z51: Geopolitical concerns starting to worry investors | AA51: Geopolitical concerns starting to worry investors | AB51: Geopolitical concerns starting to worry investors | AD51: 1 | AE51: =INT(0.4*AE46+0.6*(1+RAND()*10)) -> 7 | AF51: =+$AC$14+(AD51-1)*$AC$16+$AC$16*RAND() -> 0.0121703938 | AI51: 7 | AZ51: 0
E52: 5 | F52: 100 | G52: 0 | H52: 0 | I52: 0 | J52: 0.04665346444 | X52: 15.3 | Y52: =+B02Clue1(INT(0.6*$AD52+0.4*$AD47+RAND()*$AI52)) -> Leading economic indicators match expectations | Z52: Leading economic indicators match expectations | AA52: Leading economic indicators match expectations | AB52: Leading economic indicators match expectations | AD52: 1 | AE52: =+AE51 -> 7 | AF52: =+AF51 -> 0.0121703938 | AI52: 5 | AZ52: =+INT($W$8*$V$10*RAND()+AZ51) -> 17
E53: 5 | F53: 0 | G53: 100 | H53: 0 | I53: 0 | J53: 0.04447897151 | X53: 46.8 | Y53: Inventory buildup points to signs of recession | Z53: Inventory buildup points to signs of recession | AA53: Inventory buildup points to signs of recession | AB53: Inventory buildup points to signs of recession | AD53: 1 | AE53: =+AE52 -> 7 | AF53: =+AF52 -> 0.0121703938 | AI53: 3 | AZ53: =+INT($W$8*$V$10*RAND()+AZ52) -> 52
E54: 5 | F54: 0 | G54: 0 | H54: 100 | I54: 0 | J54: 0.02886523865 | X54: 72 | Y54: Early trend in recession, forward indicators raise new questions about the economy | Z54: Early trend in recession, forward indicators raise new questions about the economy | AA54: Early trend in recession, forward indicators raise new questions about the economy | AB54: Early trend in recession, forward indicators raise new questions about the economy | AD54: 1 | AE54: =+AE53 -> 7 | AF54: 0.0121703938 | AI54: 2 | AZ54: =+INT($W$8*$V$10*RAND()+AZ53) -> 80
E55: 105 | F55: 0 | G55: 0 | H55: 0 | I55: 100 | J55: 0.03778143227 | X55: 147.6 | Y55: No breakthrough at the UN; crisis continues | Z55: No breakthrough at the UN; crisis continues | AA55: No breakthrough at the UN; crisis continues | AB55: No breakthrough at the UN; crisis continues | AD55: 1 | AE55: =+AE54 -> 7 | AF55: 0.0121703938 | AI55: 1 | AZ55: =+INT($W$8*$V$10*RAND()+AZ54) -> 164
D56: Trial 8 | E56: 5 | F56: 0 | G56: 0 | H56: 0 | I56: 0 | J56: 0.01999999955 | W56: Period3 | X56: =+(AZ56/300)*$X$18 -> 0 | Y56: =+B02Clue1(INT(0.6*$AD56+0.4*$AD51+RAND()*$AI56)) -> No breakthrough at the UN; crisis continues | Z56: No breakthrough at the UN; crisis continues | AA56: No breakthrough at the UN; crisis continues | AB56: No breakthrough at the UN; crisis continues | AD56: 1 | AE56: =INT(0.4*AE51+0.6*(1+RAND()*10)) -> 4 | AF56: =+$AC$14+(AD56-1)*$AC$16+$AC$16*RAND() -> 0.01338809069 | AI56: 7 | AZ56: 0
E57: 5 | F57: 100 | G57: 0 | H57: 0 | I57: 0 | J57: 0.03148006275 | X57: 17.1 | Y57: Inventory buildup points to signs of recession | Z57: Inventory buildup points to signs of recession | AA57: Inventory buildup points to signs of recession | AB57: Inventory buildup points to signs of recession | AD57: 1 | AE57: =+AE56 -> 4 | AF57: 0.01338809069 | AI57: 5 | AZ57: =+INT($W$8*$V$10*RAND()+AZ56) -> 19
E58: 5 | F58: 0 | G58: 100 | H58: 0 | I58: 0 | J58: 0.02180953696 | X58: 45.9 | Y58: Inventory buildup points to signs of recession | Z58: Inventory buildup points to signs of recession | AA58: Inventory buildup points to signs of recession | AB58: Inventory buildup points to signs of recession | AD58: 1 | AE58: =+AE57 -> 4 | AF58: 0.01338809069 | AI58: 3 | AZ58: =+INT($W$8*$V$10*RAND()+AZ57) -> 51
E59: 5 | F59: 0 | G59: 0 | H59: 100 | I59: 0 | J59: 0.02746291459 | X59: 78.3 | Y59: Consumer confidence is widely tipped at lowest level for over a decade | Z59: Consumer confidence is widely tipped at lowest level for over a decade | AA59: Consumer confidence is widely tipped at lowest level for over a decade | AB59: Consumer confidence is widely tipped at lowest level for over a decade | AD59: 1 | AE59: =+AE58 -> 4 | AF59: 0.01338809069 | AI59: 2 | AZ59: =+INT($W$8*$V$10*RAND()+AZ58) -> 87
E60: 105 | F60: 0 | G60: 0 | H60: 0 | I60: 100 | J60: 0.01936008036 | X60: 138.6 | Y60: Consumer confidence is widely tipped at lowest level for over a decade | Z60: Consumer confidence is widely tipped at lowest level for over a decade | AA60: Consumer confidence is widely tipped at lowest level for over a decade | AB60: Consumer confidence is widely tipped at lowest level for over a decade | AD60: 1 | AE60: =+AE59 -> 4 | AF60: 0.01338809069 | AI60: 1 | AZ60: =+INT($W$8*$V$10*RAND()+AZ59) -> 154
D61: Trial 9 | E61: 5 | F61: 0 | G61: 0 | H61: 0 | I61: 0 | J61: 0.01999999955 | W61: Period4 | X61: =+(AZ61/300)*$X$18 -> 0 | Y61: =+B02Clue1(INT(0.6*$AD61+0.4*$AD56+RAND()*$AI61)) -> Leading indicators suggest positive economic outlook | Z61: =+$Y61 -> Leading indicators suggest positive economic outlook | AA61: Leading indicators suggest positive economic outlook | AB61: Leading indicators suggest positive economic outlook | AD61: 1 | AE61: =INT(0.4*AE56+0.6*(1+RAND()*10)) -> 5 | AF61: =+$AC$14+(AD61-1)*$AC$16+$AC$16*RAND() -> 0.01020827128 | AI61: 7 | AZ61: 0
E62: 5 | F62: 100 | G62: 0 | H62: 0 | I62: 0 | J62: 0.02022163756 | X62: 24.3 | Y62: Inventory buildup points to signs of recession | Z62: Inventory buildup points to signs of recession | AA62: Inventory buildup points to signs of recession | AB62: Inventory buildup points to signs of recession | AD62: 1 | AE62: =+AE61 -> 5 | AF62: 0.01020827128 | AI62: 5 | AZ62: =+INT($W$8*$V$10*RAND()+AZ61) -> 27
E63: 5 | F63: 0 | G63: 100 | H63: 0 | I63: 0 | J63: 0.01674971171 | X63: 85.5 | Y63: Inventory buildup points to signs of recession | Z63: Inventory buildup points to signs of recession | AA63: Inventory buildup points to signs of recession | AB63: Inventory buildup points to signs of recession | AD63: 1 | AE63: =+AE62 -> 5 | AF63: 0.01020827128 | AI63: 3 | AZ63: =+INT($W$8*$V$10*RAND()+AZ62) -> 95
E64: 5 | F64: 0 | G64: 0 | H64: 100 | I64: 0 | J64: 0.01714546978 | X64: 137.7 | Y64: Consumer confidence falls, signalling decline in spending | Z64: Consumer confidence falls, signalling decline in spending | AA64: Consumer confidence falls, signalling decline in spending | AB64: Consumer confidence falls, signalling decline in spending | AD64: 1 | AE64: =+AE63 -> 5 | AF64: 0.01020827128 | AI64: 2 | AZ64: =+INT($W$8*$V$10*RAND()+AZ63) -> 153
E65: 105 | F65: 0 | G65: 0 | H65: 0 | I65: 100 | J65: 0.02593814954 | X65: 190.8 | Y65: Recession more likely say economists | Z65: Recession more likely say economists | AA65: Recession more likely say economists | AB65: Recession more likely say economists | AD65: 1 | AE65: =+AE64 -> 5 | AF65: 0.01020827128 | AI65: 1 | AZ65: =+INT($W$8*$V$10*RAND()+AZ64) -> 212
D66: Trial 10 | E66: 5 | F66: 0 | G66: 0 | H66: 0 | I66: 0 | J66: 0.01999999955 | W66: Period5 | X66: =+(AZ66/300)*$X$18 -> 0 | Y66: =+B02Clue1(INT(0.6*$AD66+0.4*$AD61+RAND()*$AI66)) -> Geopolitical concerns starting to worry investors | Z66: Geopolitical concerns starting to worry investors | AA66: Geopolitical concerns starting to worry investors | AB66: Geopolitical concerns starting to worry investors | AD66: 5 | AE66: =INT(0.4*AE61+0.6*(1+RAND()*10)) -> 7 | AF66: =+$AC$14+(AD66-1)*$AC$16+$AC$16*RAND() -> 0.02847384789 | AI66: 7 | AZ66: 0
E67: 5 | F67: 100 | G67: 0 | H67: 0 | I67: 0 | J67: 0.02606252208 | X67: 71.1 | Y67: Stock funds experiencing mild selling | Z67: Stock funds experiencing mild selling | AA67: Stock funds experiencing mild selling | AB67: Stock funds experiencing mild selling | AD67: 5 | AE67: =+AE66 -> 7 | AF67: 0.02847384789 | AI67: 5 | AZ67: =+INT($W$8*$V$10*RAND()+AZ66) -> 79
E68: 5 | F68: 0 | G68: 100 | H68: 0 | I68: 0 | J68: 0.03177378699 | X68: 108.9 | Y68: Stock funds experiencing mild selling | Z68: Stock funds experiencing mild selling | AA68: Stock funds experiencing mild selling | AB68: Stock funds experiencing mild selling | AD68: 5 | AE68: =+AE67 -> 7 | AF68: 0.02847384789 | AI68: 3 | AZ68: =+INT($W$8*$V$10*RAND()+AZ67) -> 121
E69: 5 | F69: 0 | G69: 0 | H69: 100 | I69: 0 | J69: 0.04155995324 | X69: 122.4 | Y69: Leading economic indicators match expectations | Z69: Leading economic indicators match expectations | AA69: Leading economic indicators match expectations | AB69: Leading economic indicators match expectations | AD69: 5 | AE69: =+AE68 -> 7 | AF69: 0.02847384789 | AI69: 2 | AZ69: =+INT($W$8*$V$10*RAND()+AZ68) -> 136
E70: 105 | F70: 0 | G70: 0 | H70: 0 | I70: 100 | J70: 0.02728705481 | X70: 148.5 | Y70: Geopolitical concerns starting to worry investors | Z70: Geopolitical concerns starting to worry investors | AA70: Geopolitical concerns starting to worry investors | AB70: Geopolitical concerns starting to worry investors | AD70: 5 | AE70: =+AE69 -> 7 | AF70: 0.02847384789 | AI70: 1 | AZ70: =+INT($W$8*$V$10*RAND()+AZ69) -> 165
W71: Trial 3 | X71: =+(AZ71/300)*$X$18 -> 0 | Y71: =+B02Clue1(INT($AD71+RAND()*$AI71)) -> Stock funds experiencing mild selling | Z71: Stock funds experiencing mild selling | AA71: Stock funds experiencing mild selling | AB71: Stock funds experiencing mild selling | AD71: 3 | AE71: =INT(1+RAND()*10) -> 7 | AF71: =+$AC$14+(AD71-1)*$AC$16+$AC$16*RAND() -> 0.01887412351 | AI71: 7 | AZ71: 0
X72: 45.9 | Y72: =+B02Clue1(INT($AD72+RAND()*$AI72)) -> Consumer spending suggests that a declining trend has started. | Z72: Consumer spending suggests that a declining trend has started. | AA72: Consumer spending suggests that a declining trend has started. | AB72: Consumer spending suggests that a declining trend has started. | AD72: 3 | AE72: =+AE71 -> 7 | AF72: 0.01887412351 | AI72: 5 | AZ72: =+INT($W$8*$V$10*RAND()+AZ71) -> 51
E73: 78.88518 | G73: 77.43909 | X73: 92.7 | Y73: =+B02Clue1(INT($AD73+RAND()*$AI73)) -> Geopolitical concerns starting to worry investors | Z73: Geopolitical concerns starting to worry investors | AA73: Geopolitical concerns starting to worry investors | AB73: Geopolitical concerns starting to worry investors | AD73: 3 | AE73: 7 | AF73: 0.01887412351 | AI73: 3 | AZ73: =+INT($W$8*$V$10*RAND()+AZ72) -> 103
E74: 60 | X74: 137.7 | Y74: =+B02Clue1(INT($AD74+RAND()*$AI74)) -> Consumer spending suggests that a declining trend has started. | Z74: Consumer spending suggests that a declining trend has started. | AA74: Consumer spending suggests that a declining trend has started. | AB74: Consumer spending suggests that a declining trend has started. | AD74: 3 | AE74: 7 | AF74: 0.01887412351 | AI74: 2 | AZ74: =+INT($W$8*$V$10*RAND()+AZ73) -> 153
X75: 186.3 | Y75: =+B02Clue1(INT($AD75+RAND()*$AI75)) -> Consumer spending suggests that a declining trend has started. | Z75: Consumer spending suggests that a declining trend has started. | AA75: Consumer spending suggests that a declining trend has started. | AB75: Consumer spending suggests that a declining trend has started. | AD75: 3 | AE75: 7 | AF75: 0.01887412351 | AI75: 1 | AZ75: =+INT($W$8*$V$10*RAND()+AZ74) -> 207
W76: Period2 | X76: =+(AZ76/300)*$X$18 -> 0 | Y76: =+B02Clue1(INT(0.6*$AD76+0.4*$AD71+RAND()*$AI76)) -> Geopolitical investment concerns are rapidly fading | Z76: Geopolitical investment concerns are rapidly fading | AA76: Geopolitical investment concerns are rapidly fading | AB76: Geopolitical investment concerns are rapidly fading | AD76: 5 | AE76: =INT(0.4*AE71+0.6*(1+RAND()*10)) -> 5 | AF76: =+$AC$14+(AD76-1)*$AC$16+$AC$16*RAND() -> 0.02728853463 | AI76: 7 | AZ76: 0
X77: 34.2 | Y77: =+B02Clue1(INT(0.6*$AD77+0.4*$AD72+RAND()*$AI77)) -> Geopolitical investment concerns are rapidly fading | Z77: Geopolitical investment concerns are rapidly fading | AA77: Geopolitical investment concerns are rapidly fading | AB77: Geopolitical investment concerns are rapidly fading | AD77: 5 | AE77: =+AE76 -> 5 | AF77: =+AF76 -> 0.02728853463 | AI77: 5 | AZ77: =+INT($W$8*$V$10*RAND()+AZ76) -> 38
X78: 38.7 | Y78: Some major corporations have started to trim work force | Z78: Some major corporations have started to trim work force | AA78: Some major corporations have started to trim work force | AB78: Some major corporations have started to trim work force | AD78: 5 | AE78: =+AE77 -> 5 | AF78: =+AF77 -> 0.02728853463 | AI78: 3 | AZ78: =+INT($W$8*$V$10*RAND()+AZ77) -> 43
X79: 46.8 | Y79: Some major corporations have started to trim work force | Z79: Some major corporations have started to trim work force | AA79: Some major corporations have started to trim work force | AB79: Some major corporations have started to trim work force | AD79: 5 | AE79: =+AE78 -> 5 | AF79: 0.02728853463 | AI79: 2 | AZ79: =+INT($W$8*$V$10*RAND()+AZ78) -> 52
A80: Endowments Calculations | X80: 54 | Y80: Geopolitical concerns starting to worry investors | Z80: Geopolitical concerns starting to worry investors | AA80: Geopolitical concerns starting to worry investors | AB80: Geopolitical concerns starting to worry investors | AD80: 5 | AE80: =+AE79 -> 5 | AF80: 0.02728853463 | AI80: 1 | AZ80: =+INT($W$8*$V$10*RAND()+AZ79) -> 60
A81: E(Rates) | B81: 0.01999999955 | C81: 0.03672970086 | D81: 0.04112125933 | E81: 0.03549132124 | F81: 0.04204283282 | W81: Period3 | X81: =+(AZ81/300)*$X$18 -> 0 | Y81: =+B02Clue1(INT(0.6*$AD81+0.4*$AD76+RAND()*$AI81)) -> Inflationary expectations increased sharply | Z81: =+$Y81 -> Inflationary expectations increased sharply | AA81: Inflationary expectations increased sharply | AB81: Inflationary expectations increased sharply | AD81: 7 | AE81: =INT(0.4*AE76+0.6*(1+RAND()*10)) -> 2 | AF81: =+$AC$14+(AD81-1)*$AC$16+$AC$16*RAND() -> 0.03711807756 | AI81: 7 | AZ81: 0
A82: E(1+Spot Rates) | B82: =(1+B81) -> 1.02 | C82: =+((1+B81)*(1+C81))^0.5 -> 1.028330829 | D82: =+((C82^2)*(1+D81))^(1/3) -> 1.032576751 | E82: =+((D82^3)*(1+E81))^(1/4) -> 1.033304623 | F82: =+((E82^5)*(1+F81))^(1/5) -> 1.041850697 | X82: 30.6 | Y82: Fed chairman congressional testimony provides optimism | Z82: Fed chairman congressional testimony provides optimism | AA82: Fed chairman congressional testimony provides optimism | AB82: Fed chairman congressional testimony provides optimism | AD82: 7 | AE82: =+AE81 -> 2 | AF82: 0.03711807756 | AI82: 5 | AZ82: =+INT($W$8*$V$10*RAND()+AZ81) -> 34
A83: Coupon Bond | B83: 5 | C83: 5 | D83: 5 | E83: 5 | F83: 105 | X83: 64.8 | Y83: Indicators are reinforcing a positive economic outlook | Z83: Indicators are reinforcing a positive economic outlook | AA83: Indicators are reinforcing a positive economic outlook | AB83: Indicators are reinforcing a positive economic outlook | AD83: 7 | AE83: =+AE82 -> 2 | AF83: 0.03711807756 | AI83: 3 | AZ83: =+INT($W$8*$V$10*RAND()+AZ82) -> 72
A84: Z2 | B84: 0 | C84: 100 | X84: 81.9 | Y84: Leading indicators suggest positive economic outlook | Z84: Leading indicators suggest positive economic outlook | AA84: Leading indicators suggest positive economic outlook | AB84: Leading indicators suggest positive economic outlook | AD84: 7 | AE84: =+AE83 -> 2 | AF84: 0.03711807756 | AI84: 2 | AZ84: =+INT($W$8*$V$10*RAND()+AZ83) -> 91
A85: Z3 | B85: 0 | C85: 0 | D85: 100 | X85: 121.5 | Y85: Leading indicators suggest positive economic outlook | Z85: Leading indicators suggest positive economic outlook | AA85: Leading indicators suggest positive economic outlook | AB85: Leading indicators suggest positive economic outlook | AD85: 7 | AE85: =+AE84 -> 2 | AF85: 0.03711807756 | AI85: 1 | AZ85: =+INT($W$8*$V$10*RAND()+AZ84) -> 135
A86: Z4 | B86: 0 | C86: 0 | D86: 0 | E86: 100 | W86: Period4 | X86: =+(AZ86/300)*$X$18 -> 0 | Y86: =+B02Clue1(INT(0.6*$AD86+0.4*$AD81+RAND()*$AI86)) -> Consumer price index expected to surge | Z86: Consumer price index expected to surge | AA86: Consumer price index expected to surge | AB86: Consumer price index expected to surge | AD86: 4 | AE86: =INT(0.4*AE81+0.6*(1+RAND()*10)) -> 6 | AF86: =+$AC$14+(AD86-1)*$AC$16+$AC$16*RAND() -> 0.02385089598 | AI86: 7 | AZ86: 0
A87: Z5 | B87: 0 | C87: 0 | D87: 0 | E87: 0 | F87: 100 | X87: =+(AZ87/300)*$X$18 -> 21.6 | Y87: Factory orders expected to increase sharply | Z87: Factory orders expected to increase sharply | AA87: Factory orders expected to increase sharply | AB87: Factory orders expected to increase sharply | AD87: 4 | AE87: =+AE86 -> 6 | AF87: 0.02385089598 | AI87: 5 | AZ87: =+INT($W$8*$V$10*RAND()+AZ86) -> 24
B88: PerfectInfo | X88: 57.6 | Y88: Stock funds experiencing mild selling | Z88: Stock funds experiencing mild selling | AA88: Stock funds experiencing mild selling | AB88: Stock funds experiencing mild selling | AD88: 4 | AE88: =+AE87 -> 6 | AF88: 0.02385089598 | AI88: 3 | AZ88: =+INT($W$8*$V$10*RAND()+AZ87) -> 64
A89: Coupon Bond | B89: =+(B83/($B$82))+(C83/($C$82)^2)+(D83/($D$82)^3)+(E83/($E$82)^4)+(F83/($F$82)^5) -> 104.0962151 | X89: 87.3 | Y89: Stock funds experiencing mild selling | Z89: Stock funds experiencing mild selling | AA89: Stock funds experiencing mild selling | AB89: Stock funds experiencing mild selling | AD89: 4 | AE89: =+AE88 -> 6 | AF89: 0.02385089598 | AI89: 2 | AZ89: =+INT($W$8*$V$10*RAND()+AZ88) -> 97
A90: Z2 | B90: =+(B84/($B$82))+(C84/($C$82)^2)+(D84/($D$82)^3)+(E84/($E$82)^4)+(F84/($F$82)^5) -> 94.56584069 | X90: 141.3 | Y90: Leading economic indicators match expectations | Z90: Leading economic indicators match expectations | AA90: Leading economic indicators match expectations | AB90: Leading economic indicators match expectations | AD90: 4 | AE90: =+AE89 -> 6 | AF90: 0.02385089598 | AI90: 1 | AZ90: =+INT($W$8*$V$10*RAND()+AZ89) -> 157
A91: Z3 | B91: =+(B85/($B$82))+(C85/($C$82)^2)+(D85/($D$82)^3)+(E85/($E$82)^4)+(F85/($F$82)^5) -> 90.83076524 | W91: Period5 | X91: =+(AZ91/300)*$X$18 -> 0 | Y91: =+B02Clue1(INT(0.6*$AD91+0.4*$AD86+RAND()*$AI91)) -> Much stronger economic growth is currently being forecast | Z91: Much stronger economic growth is currently being forecast | AA91: Much stronger economic growth is currently being forecast | AB91: Much stronger economic growth is currently being forecast | AD91: 2 | AE91: =INT(0.4*AE86+0.6*(1+RAND()*10)) -> 8 | AF91: =+$AC$14+(AD91-1)*$AC$16+$AC$16*RAND() -> 0.01783500009 | AI91: 7 | AZ91: 0
A92: Z4 | B92: =+(B86/($B$82))+(C86/($C$82)^2)+(D86/($D$82)^3)+(E86/($E$82)^4)+(F86/($F$82)^5) -> 87.71755337 | X92: 38.7 | Y92: Leading indicators suggest positive economic outlook | Z92: Leading indicators suggest positive economic outlook | AA92: Leading indicators suggest positive economic outlook | AB92: Leading indicators suggest positive economic outlook | AD92: 2 | AE92: =+AE91 -> 8 | AF92: 0.01783500009 | AI92: =+AI87 -> 5 | AZ92: =+INT($W$8*$V$10*RAND()+AZ91) -> 43
A93: Z5 | B93: =+(B87/($B$82))+(C87/($C$82)^2)+(D87/($D$82)^3)+(E87/($E$82)^4)+(F87/($F$82)^5) -> 81.46528222 | X93: 72.9 | Y93: Leading economic indicators match expectations | Z93: Leading economic indicators match expectations | AA93: Leading economic indicators match expectations | AB93: Leading economic indicators match expectations | AD93: 2 | AE93: =+AE92 -> 8 | AF93: 0.01783500009 | AI93: 3 | AZ93: =+INT($W$8*$V$10*RAND()+AZ92) -> 81
B94: Type 1 | C94: Type 2 | X94: 135 | Y94: Early trend in recession, forward indicators raise new questions about the economy | Z94: Early trend in recession, forward indicators raise new questions about the economy | AA94: Early trend in recession, forward indicators raise new questions about the economy | AB94: Early trend in recession, forward indicators raise new questions about the economy | AD94: 2 | AE94: =+AE93 -> 8 | AF94: 0.01783500009 | AI94: 2 | AZ94: =+INT($W$8*$V$10*RAND()+AZ93) -> 150
A95: Bonds | B95: =+B22*$B$89+B23*$B$90+B24*$B$91+B25*$B$92+B26*$B$93 -> 11047124.1 | C95: =+C22*$B$89+C23*$B$90+C24*$B$91+C25*$B$92+C26*$B$93 -> 8935644.252 | X95: 167.4 | Y95: Early trend in recession, forward indicators raise new questions about the economy | Z95: Early trend in recession, forward indicators raise new questions about the economy | AA95: Early trend in recession, forward indicators raise new questions about the economy | AB95: Early trend in recession, forward indicators raise new questions about the economy | AD95: 2 | AE95: =+AE94 -> 8 | AF95: 0.01783500009 | AI95: 1 | AZ95: =+INT($W$8*$V$10*RAND()+AZ94) -> 186
A96: Cash | B96: =+B97-B95 -> 3952875.9 | C96: =+C97-C95 -> 6064355.748 | W96: Trial 4 | X96: =+(AZ96/300)*$X$18 -> 0 | Y96: =+B02Clue1(INT($AD96+RAND()*$AI96)) -> Fed chairman congressional testimony provides optimism | Z96: Fed chairman congressional testimony provides optimism | AA96: Fed chairman congressional testimony provides optimism | AB96: Fed chairman congressional testimony provides optimism | AD96: 6 | AE96: =INT(1+RAND()*10) -> 6 | AF96: =+$AC$14+(AD96-1)*$AC$16+$AC$16*RAND() -> 0.03333155474 | AI96: 7 | AZ96: 0
A97: Total | B97: =15000000 -> 15000000 | C97: =15000000 -> 15000000 | X97: =+(AZ97/300)*$X$18 -> 32.4 | Y97: =+B02Clue1(INT($AD97+RAND()*$AI97)) -> Analyst forecast increased earnings for most industries in the economy | Z97: Analyst forecast increased earnings for most industries in the economy | AA97: Analyst forecast increased earnings for most industries in the economy | AB97: Analyst forecast increased earnings for most industries in the economy | AD97: 6 | AE97: =+AE96 -> 6 | AF97: 0.03333155474 | AI97: 5 | AZ97: =+INT($W$8*$V$10*RAND()+AZ96) -> 36
X98: 60.3 | Y98: =+B02Clue1(INT($AD98+RAND()*$AI98)) -> Analyst forecast increased earnings for most industries in the economy | Z98: Analyst forecast increased earnings for most industries in the economy | AA98: Analyst forecast increased earnings for most industries in the economy | AB98: Analyst forecast increased earnings for most industries in the economy | AD98: 6 | AE98: 6 | AF98: 0.03333155474 | AI98: 3 | AZ98: =+INT($W$8*$V$10*RAND()+AZ97) -> 67
X99: 73.8 | Y99: =+B02Clue1(INT($AD99+RAND()*$AI99)) -> Fed chairman congressional testimony provides optimism | Z99: Fed chairman congressional testimony provides optimism | AA99: Fed chairman congressional testimony provides optimism | AB99: Fed chairman congressional testimony provides optimism | AD99: 6 | AE99: 6 | AF99: 0.03333155474 | AI99: 2 | AZ99: =+INT($W$8*$V$10*RAND()+AZ98) -> 82
X100: 141.3 | Y100: =+B02Clue1(INT($AD100+RAND()*$AI100)) -> Fed chairman congressional testimony provides optimism | Z100: Fed chairman congressional testimony provides optimism | AA100: Fed chairman congressional testimony provides optimism | AB100: Fed chairman congressional testimony provides optimism | AD100: 6 | AE100: 6 | AF100: 0.03333155474 | AI100: 1 | AZ100: =+INT($W$8*$V$10*RAND()+AZ99) -> 157
W101: Period2 | X101: =+(AZ101/300)*$X$18 -> 0 | Y101: =+B02Clue1(INT(0.6*$AD101+0.4*$AD96+RAND()*$AI101)) -> Large jump in both imports and exports plus trade deficit sharply wider | Z101: =+$Y101 -> Large jump in both imports and exports plus trade deficit sharply wider | AA101: Large jump in both imports and exports plus trade deficit sharply wider | AB101: Large jump in both imports and exports plus trade deficit sharply wider | AD101: 6 | AE101: =INT(0.4*AE96+0.6*(1+RAND()*10)) -> 7 | AF101: =+$AC$14+(AD101-1)*$AC$16+$AC$16*RAND() -> 0.03164648009 | AI101: 7 | AZ101: 0
X102: 46.8 | Y102: =+B02Clue1(INT(0.6*$AD102+0.4*$AD97+RAND()*$AI102)) -> Large jump in both imports and exports plus trade deficit sharply wider | Z102: Large jump in both imports and exports plus trade deficit sharply wider | AA102: Large jump in both imports and exports plus trade deficit sharply wider | AB102: Large jump in both imports and exports plus trade deficit sharply wider | AD102: 6 | AE102: =+AE101 -> 7 | AF102: =+AF101 -> 0.03164648009 | AI102: 5 | AZ102: =+INT($W$8*$V$10*RAND()+AZ101) -> 52
X103: 90 | Y103: Indicators are reinforcing a positive economic outlook | Z103: Indicators are reinforcing a positive economic outlook | AA103: Indicators are reinforcing a positive economic outlook | AB103: Indicators are reinforcing a positive economic outlook | AD103: 6 | AE103: =+AE102 -> 7 | AF103: =+AF102 -> 0.03164648009 | AI103: 3 | AZ103: =+INT($W$8*$V$10*RAND()+AZ102) -> 100
X104: 124.2 | Y104: Fed chairman congressional testimony provides optimism | Z104: Fed chairman congressional testimony provides optimism | AA104: Fed chairman congressional testimony provides optimism | AB104: Fed chairman congressional testimony provides optimism | AD104: 6 | AE104: =+AE103 -> 7 | AF104: 0.03164648009 | AI104: 2 | AZ104: =+INT($W$8*$V$10*RAND()+AZ103) -> 138
X105: 169.2 | Y105: Fed chairman congressional testimony provides optimism | Z105: Fed chairman congressional testimony provides optimism | AA105: Fed chairman congressional testimony provides optimism | AB105: Fed chairman congressional testimony provides optimism | AD105: 6 | AE105: =+AE104 -> 7 | AF105: 0.03164648009 | AI105: 1 | AZ105: =+INT($W$8*$V$10*RAND()+AZ104) -> 188
W106: Period3 | X106: =+(AZ106/300)*$X$18 -> 0 | Y106: =+B02Clue1(INT(0.6*$AD106+0.4*$AD101+RAND()*$AI106)) -> Consumer price index expected to surge | Z106: Consumer price index expected to surge | AA106: Consumer price index expected to surge | AB106: Consumer price index expected to surge | AD106: 8 | AE106: =INT(0.4*AE101+0.6*(1+RAND()*10)) -> 3 | AF106: =+$AC$14+(AD106-1)*$AC$16+$AC$16*RAND() -> 0.0394377049 | AI106: 7 | AZ106: 0
E107: 70.25002 | F107: 30 | X107: 56.7 | Y107: Much stronger economic growth is currently being forecast | Z107: Much stronger economic growth is currently being forecast | AA107: Much stronger economic growth is currently being forecast | AB107: Much stronger economic growth is currently being forecast | AD107: 8 | AE107: =+AE106 -> 3 | AF107: 0.0394377049 | AI107: 5 | AZ107: =+INT($W$8*$V$10*RAND()+AZ106) -> 63
X108: 56.7 | Y108: Factory orders expected to increase sharply | Z108: Factory orders expected to increase sharply | AA108: Factory orders expected to increase sharply | AB108: Factory orders expected to increase sharply | AD108: 8 | AE108: =+AE107 -> 3 | AF108: 0.0394377049 | AI108: 3 | AZ108: =+INT($W$8*$V$10*RAND()+AZ107) -> 63
X109: 72.9 | Y109: Indicators are reinforcing a positive economic outlook | Z109: Indicators are reinforcing a positive economic outlook | AA109: Indicators are reinforcing a positive economic outlook | AB109: Indicators are reinforcing a positive economic outlook | AD109: 8 | AE109: =+AE108 -> 3 | AF109: 0.0394377049 | AI109: 2 | AZ109: =+INT($W$8*$V$10*RAND()+AZ108) -> 81
X110: 80.1 | Y110: Analyst forecast increased earnings for most industries in the economy | Z110: Analyst forecast increased earnings for most industries in the economy | AA110: Analyst forecast increased earnings for most industries in the economy | AB110: Analyst forecast increased earnings for most industries in the economy | AD110: 8 | AE110: =+AE109 -> 3 | AF110: 0.0394377049 | AI110: 1 | AZ110: =+INT($W$8*$V$10*RAND()+AZ109) -> 89
W111: Period4 | X111: =+(AZ111/300)*$X$18 -> 0 | Y111: =+B02Clue1(INT(0.6*$AD111+0.4*$AD106+RAND()*$AI111)) -> Fed chairman congressional testimony provides optimism | Z111: Fed chairman congressional testimony provides optimism | AA111: Fed chairman congressional testimony provides optimism | AB111: Fed chairman congressional testimony provides optimism | AD111: 5 | AE111: =INT(0.4*AE106+0.6*(1+RAND()*10)) -> 2 | AF111: =+$AC$14+(AD111-1)*$AC$16+$AC$16*RAND() -> 0.02783449032 | AI111: 7 | AZ111: 0
E112: 22.77889 | F112: 14.96512 | G112: 10.75 | H112: 14.60417 | X112: 41.4 | Y112: Leading indicators suggest positive economic outlook | Z112: Leading indicators suggest positive economic outlook | AA112: Leading indicators suggest positive economic outlook | AB112: Leading indicators suggest positive economic outlook | AD112: 5 | AE112: =+AE111 -> 2 | AF112: 0.02783449032 | AI112: 5 | AZ112: =+INT($W$8*$V$10*RAND()+AZ111) -> 46
X113: 79.2 | Y113: Analyst forecast increased earnings for most industries in the economy | Z113: Analyst forecast increased earnings for most industries in the economy | AA113: Analyst forecast increased earnings for most industries in the economy | AB113: Analyst forecast increased earnings for most industries in the economy | AD113: 5 | AE113: =+AE112 -> 2 | AF113: 0.02783449032 | AI113: 3 | AZ113: =+INT($W$8*$V$10*RAND()+AZ112) -> 88
X114: 109.8 | Y114: Factory orders expected to increase sharply | Z114: Factory orders expected to increase sharply | AA114: Factory orders expected to increase sharply | AB114: Factory orders expected to increase sharply | AD114: 5 | AE114: =+AE113 -> 2 | AF114: 0.02783449032 | AI114: 2 | AZ114: =+INT($W$8*$V$10*RAND()+AZ113) -> 122
X115: 146.7 | Y115: Leading indicators suggest positive economic outlook | Z115: Leading indicators suggest positive economic outlook | AA115: Leading indicators suggest positive economic outlook | AB115: Leading indicators suggest positive economic outlook | AD115: 5 | AE115: =+AE114 -> 2 | AF115: 0.02783449032 | AI115: 1 | AZ115: =+INT($W$8*$V$10*RAND()+AZ114) -> 163
W116: Period5 | X116: =+(AZ116/300)*$X$18 -> 0 | Y116: =+B02Clue1(INT(0.6*$AD116+0.4*$AD111+RAND()*$AI116)) -> Very strong and unexpected surge in the producer price index | Z116: Very strong and unexpected surge in the producer price index | AA116: Very strong and unexpected surge in the producer price index | AB116: Very strong and unexpected surge in the producer price index | AD116: 4 | AE116: =INT(0.4*AE111+0.6*(1+RAND()*10)) -> 3 | AF116: =+$AC$14+(AD116-1)*$AC$16+$AC$16*RAND() -> 0.02289337709 | AI116: 7 | AZ116: 0
X117: 59.4 | Y117: Some major corporations have started to trim work force | Z117: Some major corporations have started to trim work force | AA117: Some major corporations have started to trim work force | AB117: Some major corporations have started to trim work force | AD117: 4 | AE117: =+AE116 -> 3 | AF117: 0.02289337709 | AI117: 5 | AZ117: =+INT($W$8*$V$10*RAND()+AZ116) -> 66
X118: 129.6 | Y118: Leading economic indicators match expectations | Z118: Leading economic indicators match expectations | AA118: Leading economic indicators match expectations | AB118: Leading economic indicators match expectations | AD118: 4 | AE118: =+AE117 -> 3 | AF118: 0.02289337709 | AI118: 3 | AZ118: =+INT($W$8*$V$10*RAND()+AZ117) -> 144
X119: 148.5 | Y119: Leading economic indicators match expectations | Z119: Leading economic indicators match expectations | AA119: Leading economic indicators match expectations | AB119: Leading economic indicators match expectations | AD119: 4 | AE119: =+AE118 -> 3 | AF119: 0.02289337709 | AI119: 2 | AZ119: =+INT($W$8*$V$10*RAND()+AZ118) -> 165
X120: 174.6 | Y120: Leading economic indicators match expectations | Z120: Leading economic indicators match expectations | AA120: Leading economic indicators match expectations | AB120: Leading economic indicators match expectations | AD120: 4 | AE120: =+AE119 -> 3 | AF120: 0.02289337709 | AI120: 1 | AZ120: =+INT($W$8*$V$10*RAND()+AZ119) -> 194
W121: Trial 5 | X121: =+(AZ121/300)*$X$18 -> 0 | Y121: =+B02Clue1(INT($AD121+RAND()*$AI121)) -> Leading indicators suggest positive economic outlook | Z121: =+$Y121 -> Leading indicators suggest positive economic outlook | AA121: Leading indicators suggest positive economic outlook | AB121: Leading indicators suggest positive economic outlook | AD121: 6 | AE121: =INT(1+RAND()*10) -> 9 | AF121: =+$AC$14+(AD121-1)*$AC$16+$AC$16*RAND() -> 0.03298439202 | AI121: 7 | AZ121: 0
X122: =+(AZ122/300)*$X$18 -> 11.7 | Y122: =+B02Clue1(INT($AD122+RAND()*$AI122)) -> Inflationary expectations increased sharply | Z122: Inflationary expectations increased sharply | AA122: Inflationary expectations increased sharply | AB122: Inflationary expectations increased sharply | AD122: 6 | AE122: =+AE121 -> 9 | AF122: 0.03298439202 | AI122: 5 | AZ122: =+INT($W$8*$V$10*RAND()+AZ121) -> 13
X123: 57.6 | Y123: =+B02Clue1(INT($AD123+RAND()*$AI123)) -> Leading indicators suggest positive economic outlook | Z123: Leading indicators suggest positive economic outlook | AA123: Leading indicators suggest positive economic outlook | AB123: Leading indicators suggest positive economic outlook | AD123: 6 | AE123: 9 | AF123: 0.03298439202 | AI123: 3 | AZ123: =+INT($W$8*$V$10*RAND()+AZ122) -> 64
X124: 96.3 | Y124: =+B02Clue1(INT($AD124+RAND()*$AI124)) -> Leading indicators suggest positive economic outlook | Z124: Leading indicators suggest positive economic outlook | AA124: Leading indicators suggest positive economic outlook | AB124: Leading indicators suggest positive economic outlook | AD124: 6 | AE124: 9 | AF124: 0.03298439202 | AI124: 2 | AZ124: =+INT($W$8*$V$10*RAND()+AZ123) -> 107
X125: 173.7 | Y125: =+B02Clue1(INT($AD125+RAND()*$AI125)) -> Fed chairman congressional testimony provides optimism | Z125: Fed chairman congressional testimony provides optimism | AA125: Fed chairman congressional testimony provides optimism | AB125: Fed chairman congressional testimony provides optimism | AD125: 6 | AE125: 9 | AF125: 0.03298439202 | AI125: 1 | AZ125: =+INT($W$8*$V$10*RAND()+AZ124) -> 193
W126: Period2 | X126: =+(AZ126/300)*$X$18 -> 0 | Y126: =+B02Clue1(INT(0.6*$AD126+0.4*$AD121+RAND()*$AI126)) -> Very strong and unexpected surge in the producer price index | Z126: Very strong and unexpected surge in the producer price index | AA126: Very strong and unexpected surge in the producer price index | AB126: Very strong and unexpected surge in the producer price index | AD126: 7 | AE126: =INT(0.4*AE121+0.6*(1+RAND()*10)) -> 8 | AF126: =+$AC$14+(AD126-1)*$AC$16+$AC$16*RAND() -> 0.03604105208 | AI126: 7 | AZ126: 0
X127: 44.1 | Y127: =+B02Clue1(INT(0.6*$AD127+0.4*$AD122+RAND()*$AI127)) -> Much stronger economic growth is currently being forecast | Z127: Much stronger economic growth is currently being forecast | AA127: Much stronger economic growth is currently being forecast | AB127: Much stronger economic growth is currently being forecast | AD127: 7 | AE127: =+AE126 -> 8 | AF127: =+AF126 -> 0.03604105208 | AI127: 5 | AZ127: =+INT($W$8*$V$10*RAND()+AZ126) -> 49
X128: 104.4 | Y128: Indicators are reinforcing a positive economic outlook | Z128: Indicators are reinforcing a positive economic outlook | AA128: Indicators are reinforcing a positive economic outlook | AB128: Indicators are reinforcing a positive economic outlook | AD128: 7 | AE128: =+AE127 -> 8 | AF128: =+AF127 -> 0.03604105208 | AI128: 3 | AZ128: =+INT($W$8*$V$10*RAND()+AZ127) -> 116
X129: 126 | Y129: Leading indicators suggest positive economic outlook | Z129: Leading indicators suggest positive economic outlook | AA129: Leading indicators suggest positive economic outlook | AB129: Leading indicators suggest positive economic outlook | AD129: 7 | AE129: =+AE128 -> 8 | AF129: 0.03604105208 | AI129: 2 | AZ129: =+INT($W$8*$V$10*RAND()+AZ128) -> 140
X130: 165.6 | Y130: Geopolitical investment concerns are rapidly fading | Z130: Geopolitical investment concerns are rapidly fading | AA130: Geopolitical investment concerns are rapidly fading | AB130: Geopolitical investment concerns are rapidly fading | AD130: 7 | AE130: =+AE129 -> 8 | AF130: 0.03604105208 | AI130: 1 | AZ130: =+INT($W$8*$V$10*RAND()+AZ129) -> 184
W131: Period3 | X131: =+(AZ131/300)*$X$18 -> 0 | Y131: =+B02Clue1(INT(0.6*$AD131+0.4*$AD126+RAND()*$AI131)) -> Large jump in both imports and exports plus trade deficit sharply wider | Z131: Large jump in both imports and exports plus trade deficit sharply wider | AA131: Large jump in both imports and exports plus trade deficit sharply wider | AB131: Large jump in both imports and exports plus trade deficit sharply wider | AD131: 8 | AE131: =INT(0.4*AE126+0.6*(1+RAND()*10)) -> 6 | AF131: =+$AC$14+(AD131-1)*$AC$16+$AC$16*RAND() -> 0.03978905166 | AI131: 7 | AZ131: 0
X132: 17.1 | Y132: Consumer price index expected to surge | Z132: Consumer price index expected to surge | AA132: Consumer price index expected to surge | AB132: Consumer price index expected to surge | AD132: 8 | AE132: =+AE131 -> 6 | AF132: 0.03978905166 | AI132: 5 | AZ132: =+INT($W$8*$V$10*RAND()+AZ131) -> 19
X133: 50.4 | Y133: Large jump in both imports and exports plus trade deficit sharply wider | Z133: Large jump in both imports and exports plus trade deficit sharply wider | AA133: Large jump in both imports and exports plus trade deficit sharply wider | AB133: Large jump in both imports and exports plus trade deficit sharply wider | AD133: 8 | AE133: =+AE132 -> 6 | AF133: 0.03978905166 | AI133: 3 | AZ133: =+INT($W$8*$V$10*RAND()+AZ132) -> 56
X134: 110.7 | Y134: Factory orders expected to increase sharply | Z134: Factory orders expected to increase sharply | AA134: Factory orders expected to increase sharply | AB134: Factory orders expected to increase sharply | AD134: 8 | AE134: =+AE133 -> 6 | AF134: 0.03978905166 | AI134: 2 | AZ134: =+INT($W$8*$V$10*RAND()+AZ133) -> 123
X135: 171.9 | Y135: Factory orders expected to increase sharply | Z135: Factory orders expected to increase sharply | AA135: Factory orders expected to increase sharply | AB135: Factory orders expected to increase sharply | AD135: 8 | AE135: =+AE134 -> 6 | AF135: 0.03978905166 | AI135: 1 | AZ135: =+INT($W$8*$V$10*RAND()+AZ134) -> 191
W136: Period4 | X136: =+(AZ136/300)*$X$18 -> 0 | Y136: =+B02Clue1(INT(0.6*$AD136+0.4*$AD131+RAND()*$AI136)) -> Analyst forecast increased earnings for most industries in the economy | Z136: Analyst forecast increased earnings for most industries in the economy | AA136: Analyst forecast increased earnings for most industries in the economy | AB136: Analyst forecast increased earnings for most industries in the economy | AD136: 8 | AE136: =INT(0.4*AE131+0.6*(1+RAND()*10)) -> 7 | AF136: =+$AC$14+(AD136-1)*$AC$16+$AC$16*RAND() -> 0.04033989082 | AI136: 7 | AZ136: 0
X137: 63 | Y137: Factory orders expected to increase sharply | Z137: Factory orders expected to increase sharply | AA137: Factory orders expected to increase sharply | AB137: Factory orders expected to increase sharply | AD137: 8 | AE137: =+AE136 -> 7 | AF137: 0.04033989082 | AI137: 5 | AZ137: =+INT($W$8*$V$10*RAND()+AZ136) -> 70
X138: 90 | Y138: Much stronger economic growth is currently being forecast | Z138: Much stronger economic growth is currently being forecast | AA138: Much stronger economic growth is currently being forecast | AB138: Much stronger economic growth is currently being forecast | AD138: 8 | AE138: =+AE137 -> 7 | AF138: 0.04033989082 | AI138: 3 | AZ138: =+INT($W$8*$V$10*RAND()+AZ137) -> 100
X139: 125.1 | Y139: Much stronger economic growth is currently being forecast | Z139: Much stronger economic growth is currently being forecast | AA139: Much stronger economic growth is currently being forecast | AB139: Much stronger economic growth is currently being forecast | AD139: 8 | AE139: =+AE138 -> 7 | AF139: 0.04033989082 | AI139: 2 | AZ139: =+INT($W$8*$V$10*RAND()+AZ138) -> 139
X140: 178.2 | Y140: Analyst forecast increased earnings for most industries in the economy | Z140: Analyst forecast increased earnings for most industries in the economy | AA140: Analyst forecast increased earnings for most industries in the economy | AB140: Analyst forecast increased earnings for most industries in the economy | AD140: 8 | AE140: =+AE139 -> 7 | AF140: 0.04033989082 | AI140: 1 | AZ140: =+INT($W$8*$V$10*RAND()+AZ139) -> 198
W141: Period5 | X141: =+(AZ141/300)*$X$18 -> 0 | Y141: =+B02Clue1(INT(0.6*$AD141+0.4*$AD136+RAND()*$AI141)) -> Inflationary expectations increased sharply | Z141: =+$Y141 -> Inflationary expectations increased sharply | AA141: Inflationary expectations increased sharply | AB141: Inflationary expectations increased sharply | AD141: 8 | AE141: =INT(0.4*AE136+0.6*(1+RAND()*10)) -> 7 | AF141: =+$AC$14+(AD141-1)*$AC$16+$AC$16*RAND() -> 0.04003937493 | AI141: 7 | AZ141: 0
X142: 55.8 | Y142: Much stronger economic growth is currently being forecast | Z142: Much stronger economic growth is currently being forecast | AA142: Much stronger economic growth is currently being forecast | AB142: Much stronger economic growth is currently being forecast | AD142: 8 | AE142: =+AE141 -> 7 | AF142: 0.04003937493 | AI142: 5 | AZ142: =+INT($W$8*$V$10*RAND()+AZ141) -> 62
X143: 111.6 | Y143: Very strong and unexpected surge in the producer price index | Z143: Very strong and unexpected surge in the producer price index | AA143: Very strong and unexpected surge in the producer price index | AB143: Very strong and unexpected surge in the producer price index | AD143: 8 | AE143: =+AE142 -> 7 | AF143: 0.04003937493 | AI143: 3 | AZ143: =+INT($W$8*$V$10*RAND()+AZ142) -> 124
X144: 171.9 | Y144: Analyst forecast increased earnings for most industries in the economy | Z144: Analyst forecast increased earnings for most industries in the economy | AA144: Analyst forecast increased earnings for most industries in the economy | AB144: Analyst forecast increased earnings for most industries in the economy | AD144: 8 | AE144: =+AE143 -> 7 | AF144: 0.04003937493 | AI144: 2 | AZ144: =+INT($W$8*$V$10*RAND()+AZ143) -> 191
X145: 189.9 | Y145: Factory orders expected to increase sharply | Z145: Factory orders expected to increase sharply | AA145: Factory orders expected to increase sharply | AB145: Factory orders expected to increase sharply | AD145: 8 | AE145: =+AE144 -> 7 | AF145: 0.04003937493 | AI145: 1 | AZ145: =+INT($W$8*$V$10*RAND()+AZ144) -> 211
W146: Trial 6 | X146: =+(AZ146/300)*$X$18 -> 0 | Y146: =+B02Clue1(INT($AD146+RAND()*$AI146)) -> Large jump in both imports and exports plus trade deficit sharply wider | Z146: Large jump in both imports and exports plus trade deficit sharply wider | AA146: Large jump in both imports and exports plus trade deficit sharply wider | AB146: Large jump in both imports and exports plus trade deficit sharply wider | AD146: 9 | AE146: =INT(1+RAND()*10) -> 1 | AF146: =+$AC$14+(AD146-1)*$AC$16+$AC$16*RAND() -> 0.04232484686 | AI146: 7 | AZ146: 0
X147: =+(AZ147/300)*$X$18 -> 67.5 | Y147: =+B02Clue1(INT($AD147+RAND()*$AI147)) -> Much stronger economic growth is currently being forecast | Z147: Much stronger economic growth is currently being forecast | AA147: Much stronger economic growth is currently being forecast | AB147: Much stronger economic growth is currently being forecast | AD147: 9 | AE147: =+AE146 -> 1 | AF147: 0.04232484686 | AI147: 5 | AZ147: =+INT($W$8*$V$10*RAND()+AZ146) -> 75
X148: 147.6 | Y148: =+B02Clue1(INT($AD148+RAND()*$AI148)) -> Very strong and unexpected surge in the producer price index | Z148: Very strong and unexpected surge in the producer price index | AA148: Very strong and unexpected surge in the producer price index | AB148: Very strong and unexpected surge in the producer price index | AD148: 9 | AE148: 1 | AF148: 0.04232484686 | AI148: 3 | AZ148: =+INT($W$8*$V$10*RAND()+AZ147) -> 164
X149: 151.2 | Y149: =+B02Clue1(INT($AD149+RAND()*$AI149)) -> Sharp jump in strong GDP forecasts | Z149: Sharp jump in strong GDP forecasts | AA149: Sharp jump in strong GDP forecasts | AB149: Sharp jump in strong GDP forecasts | AD149: 9 | AE149: 1 | AF149: 0.04232484686 | AI149: 2 | AZ149: =+INT($W$8*$V$10*RAND()+AZ148) -> 168
X150: 152.1 | Y150: =+B02Clue1(INT($AD150+RAND()*$AI150)) -> Sharp jump in strong GDP forecasts | Z150: Sharp jump in strong GDP forecasts | AA150: Sharp jump in strong GDP forecasts | AB150: Sharp jump in strong GDP forecasts | AD150: 9 | AE150: 1 | AF150: 0.04232484686 | AI150: 1 | AZ150: =+INT($W$8*$V$10*RAND()+AZ149) -> 169
W151: Period2 | X151: =+(AZ151/300)*$X$18 -> 0 | Y151: =+B02Clue1(INT(0.6*$AD151+0.4*$AD146+RAND()*$AI151)) -> Large jump in both imports and exports plus trade deficit sharply wider | Z151: Large jump in both imports and exports plus trade deficit sharply wider | AA151: Large jump in both imports and exports plus trade deficit sharply wider | AB151: Large jump in both imports and exports plus trade deficit sharply wider | AD151: 6 | AE151: =INT(0.4*AE146+0.6*(1+RAND()*10)) -> 2 | AF151: =+$AC$14+(AD151-1)*$AC$16+$AC$16*RAND() -> 0.03277138827 | AI151: 7 | AZ151: 0
X152: 56.7 | Y152: =+B02Clue1(INT(0.6*$AD152+0.4*$AD147+RAND()*$AI152)) -> Indicators are reinforcing a positive economic outlook | Z152: Indicators are reinforcing a positive economic outlook | AA152: Indicators are reinforcing a positive economic outlook | AB152: Indicators are reinforcing a positive economic outlook | AD152: 6 | AE152: =+AE151 -> 2 | AF152: =+AF151 -> 0.03277138827 | AI152: 5 | AZ152: =+INT($W$8*$V$10*RAND()+AZ151) -> 63
X153: 67.5 | Y153: Sharp jump in strong GDP forecasts | Z153: Sharp jump in strong GDP forecasts | AA153: Sharp jump in strong GDP forecasts | AB153: Sharp jump in strong GDP forecasts | AD153: 6 | AE153: =+AE152 -> 2 | AF153: =+AF152 -> 0.03277138827 | AI153: 3 | AZ153: =+INT($W$8*$V$10*RAND()+AZ152) -> 75
X154: 116.1 | Y154: Much stronger economic growth is currently being forecast | Z154: Much stronger economic growth is currently being forecast | AA154: Much stronger economic growth is currently being forecast | AB154: Much stronger economic growth is currently being forecast | AD154: 6 | AE154: =+AE153 -> 2 | AF154: 0.03277138827 | AI154: 2 | AZ154: =+INT($W$8*$V$10*RAND()+AZ153) -> 129
X155: 143.1 | Y155: Indicators are reinforcing a positive economic outlook | Z155: Indicators are reinforcing a positive economic outlook | AA155: Indicators are reinforcing a positive economic outlook | AB155: Indicators are reinforcing a positive economic outlook | AD155: 6 | AE155: =+AE154 -> 2 | AF155: 0.03277138827 | AI155: 1 | AZ155: =+INT($W$8*$V$10*RAND()+AZ154) -> 159
W156: Period3 | X156: =+(AZ156/300)*$X$18 -> 0 | Y156: =+B02Clue1(INT(0.6*$AD156+0.4*$AD151+RAND()*$AI156)) -> Inflationary expectations increased sharply | Z156: Inflationary expectations increased sharply | AA156: Inflationary expectations increased sharply | AB156: Inflationary expectations increased sharply | AD156: 6 | AE156: =INT(0.4*AE151+0.6*(1+RAND()*10)) -> 6 | AF156: =+$AC$14+(AD156-1)*$AC$16+$AC$16*RAND() -> 0.03045255265 | AI156: =+AI151 -> 7 | AZ156: 0
X157: 38.7 | Y157: Factory orders expected to increase sharply | Z157: Factory orders expected to increase sharply | AA157: Factory orders expected to increase sharply | AB157: Factory orders expected to increase sharply | AD157: 6 | AE157: =+AE156 -> 6 | AF157: 0.03045255265 | AI157: 5 | AZ157: =+INT($W$8*$V$10*RAND()+AZ156) -> 43
X158: 114.3 | Y158: Leading indicators suggest positive economic outlook | Z158: Leading indicators suggest positive economic outlook | AA158: Leading indicators suggest positive economic outlook | AB158: Leading indicators suggest positive economic outlook | AD158: 6 | AE158: =+AE157 -> 6 | AF158: 0.03045255265 | AI158: 3 | AZ158: =+INT($W$8*$V$10*RAND()+AZ157) -> 127
X159: 135 | Y159: Leading indicators suggest positive economic outlook | Z159: Leading indicators suggest positive economic outlook | AA159: Leading indicators suggest positive economic outlook | AB159: Leading indicators suggest positive economic outlook | AD159: 6 | AE159: =+AE158 -> 6 | AF159: 0.03045255265 | AI159: 2 | AZ159: =+INT($W$8*$V$10*RAND()+AZ158) -> 150
X160: 137.7 | Y160: Fed chairman congressional testimony provides optimism | Z160: Fed chairman congressional testimony provides optimism | AA160: Fed chairman congressional testimony provides optimism | AB160: Fed chairman congressional testimony provides optimism | AD160: 6 | AE160: =+AE159 -> 6 | AF160: 0.03045255265 | AI160: 1 | AZ160: =+INT($W$8*$V$10*RAND()+AZ159) -> 153
W161: Period4 | X161: =+(AZ161/300)*$X$18 -> 0 | Y161: =+B02Clue1(INT(0.6*$AD161+0.4*$AD156+RAND()*$AI161)) -> Geopolitical investment concerns are rapidly fading | Z161: =+$Y161 -> Geopolitical investment concerns are rapidly fading | AA161: Geopolitical investment concerns are rapidly fading | AB161: Geopolitical investment concerns are rapidly fading | AD161: 7 | AE161: =INT(0.4*AE156+0.6*(1+RAND()*10)) -> 3 | AF161: =+$AC$14+(AD161-1)*$AC$16+$AC$16*RAND() -> 0.03751582796 | AI161: 7 | AZ161: 0
X162: 5.4 | Y162: Much stronger economic growth is currently being forecast | Z162: Much stronger economic growth is currently being forecast | AA162: Much stronger economic growth is currently being forecast | AB162: Much stronger economic growth is currently being forecast | AD162: 7 | AE162: =+AE161 -> 3 | AF162: 0.03751582796 | AI162: 5 | AZ162: =+INT($W$8*$V$10*RAND()+AZ161) -> 6
X163: 43.2 | Y163: Much stronger economic growth is currently being forecast | Z163: Much stronger economic growth is currently being forecast | AA163: Much stronger economic growth is currently being forecast | AB163: Much stronger economic growth is currently being forecast | AD163: 7 | AE163: =+AE162 -> 3 | AF163: 0.03751582796 | AI163: 3 | AZ163: =+INT($W$8*$V$10*RAND()+AZ162) -> 48
X164: 76.5 | Y164: Fed chairman congressional testimony provides optimism | Z164: Fed chairman congressional testimony provides optimism | AA164: Fed chairman congressional testimony provides optimism | AB164: Fed chairman congressional testimony provides optimism | AD164: 7 | AE164: =+AE163 -> 3 | AF164: 0.03751582796 | AI164: 2 | AZ164: =+INT($W$8*$V$10*RAND()+AZ163) -> 85
X165: 149.4 | Y165: Geopolitical investment concerns are rapidly fading | Z165: Geopolitical investment concerns are rapidly fading | AA165: Geopolitical investment concerns are rapidly fading | AB165: Geopolitical investment concerns are rapidly fading | AD165: 7 | AE165: =+AE164 -> 3 | AF165: 0.03751582796 | AI165: 1 | AZ165: =+INT($W$8*$V$10*RAND()+AZ164) -> 166
W166: Period5 | X166: =+(AZ166/300)*$X$18 -> 0 | Y166: =+B02Clue1(INT(0.6*$AD166+0.4*$AD161+RAND()*$AI166)) -> Consumer price index expected to surge | Z166: Consumer price index expected to surge | AA166: Consumer price index expected to surge | AB166: Consumer price index expected to surge | AD166: 8 | AE166: =INT(0.4*AE161+0.6*(1+RAND()*10)) -> 5 | AF166: =+$AC$14+(AD166-1)*$AC$16+$AC$16*RAND() -> 0.04075698651 | AI166: 7 | AZ166: 0
X167: 54.9 | Y167: Large jump in both imports and exports plus trade deficit sharply wider | Z167: Large jump in both imports and exports plus trade deficit sharply wider | AA167: Large jump in both imports and exports plus trade deficit sharply wider | AB167: Large jump in both imports and exports plus trade deficit sharply wider | AD167: 8 | AE167: =+AE166 -> 5 | AF167: 0.04075698651 | AI167: 5 | AZ167: =+INT($W$8*$V$10*RAND()+AZ166) -> 61
X168: 108 | Y168: Inflationary expectations increased sharply | Z168: Inflationary expectations increased sharply | AA168: Inflationary expectations increased sharply | AB168: Inflationary expectations increased sharply | AD168: 8 | AE168: =+AE167 -> 5 | AF168: 0.04075698651 | AI168: 3 | AZ168: =+INT($W$8*$V$10*RAND()+AZ167) -> 120
X169: 168.3 | Y169: Analyst forecast increased earnings for most industries in the economy | Z169: Analyst forecast increased earnings for most industries in the economy | AA169: Analyst forecast increased earnings for most industries in the economy | AB169: Analyst forecast increased earnings for most industries in the economy | AD169: 8 | AE169: =+AE168 -> 5 | AF169: 0.04075698651 | AI169: 2 | AZ169: =+INT($W$8*$V$10*RAND()+AZ168) -> 187
X170: 221.4 | Y170: Factory orders expected to increase sharply | Z170: Factory orders expected to increase sharply | AA170: Factory orders expected to increase sharply | AB170: Factory orders expected to increase sharply | AD170: 8 | AE170: =+AE169 -> 5 | AF170: 0.04075698651 | AI170: 1 | AZ170: =+INT($W$8*$V$10*RAND()+AZ169) -> 246
W171: Trial 7 | X171: =+(AZ171/300)*$X$18 -> 0 | Y171: =+B02Clue1(INT($AD171+RAND()*$AI171)) -> Consumer price index expected to surge | Z171: Consumer price index expected to surge | AA171: Consumer price index expected to surge | AB171: Consumer price index expected to surge | AD171: 10 | AE171: =INT(1+RAND()*10) -> 7 | AF171: =+$AC$14+(AD171-1)*$AC$16+$AC$16*RAND() -> 0.04708997019 | AI171: 7 | AZ171: 0
X172: =+(AZ172/300)*$X$18 -> 36 | Y172: =+B02Clue1(INT($AD172+RAND()*$AI172)) -> Large jump in both imports and exports plus trade deficit sharply wider | Z172: Large jump in both imports and exports plus trade deficit sharply wider | AA172: Large jump in both imports and exports plus trade deficit sharply wider | AB172: Large jump in both imports and exports plus trade deficit sharply wider | AD172: 10 | AE172: =+AE171 -> 7 | AF172: 0.04708997019 | AI172: 5 | AZ172: =+INT($W$8*$V$10*RAND()+AZ171) -> 40
X173: 74.7 | Y173: =+B02Clue1(INT($AD173+RAND()*$AI173)) -> Very strong and unexpected surge in the producer price index | Z173: Very strong and unexpected surge in the producer price index | AA173: Very strong and unexpected surge in the producer price index | AB173: Very strong and unexpected surge in the producer price index | AD173: 10 | AE173: 7 | AF173: 0.04708997019 | AI173: 3 | AZ173: =+INT($W$8*$V$10*RAND()+AZ172) -> 83
X174: 114.3 | Y174: =+B02Clue1(INT($AD174+RAND()*$AI174)) -> Inflationary expectations increased sharply | Z174: Inflationary expectations increased sharply | AA174: Inflationary expectations increased sharply | AB174: Inflationary expectations increased sharply | AD174: 10 | AE174: 7 | AF174: 0.04708997019 | AI174: 2 | AZ174: =+INT($W$8*$V$10*RAND()+AZ173) -> 127
X175: 164.7 | Y175: =+B02Clue1(INT($AD175+RAND()*$AI175)) -> Large jump in both imports and exports plus trade deficit sharply wider | Z175: Large jump in both imports and exports plus trade deficit sharply wider | AA175: Large jump in both imports and exports plus trade deficit sharply wider | AB175: Large jump in both imports and exports plus trade deficit sharply wider | AD175: 10 | AE175: 7 | AF175: 0.04708997019 | AI175: 1 | AZ175: =+INT($W$8*$V$10*RAND()+AZ174) -> 183
W176: Period2 | X176: =+(AZ176/300)*$X$18 -> 0 | Y176: =+B02Clue1(INT(0.6*$AD176+0.4*$AD171+RAND()*$AI176)) -> Inflationary expectations increased sharply | Z176: Inflationary expectations increased sharply | AA176: Inflationary expectations increased sharply | AB176: Inflationary expectations increased sharply | AD176: 9 | AE176: =INT(0.4*AE171+0.6*(1+RAND()*10)) -> 8 | AF176: =+$AC$14+(AD176-1)*$AC$16+$AC$16*RAND() -> 0.04591610635 | AI176: 7 | AZ176: 0
X177: 8.1 | Y177: =+B02Clue1(INT(0.6*$AD177+0.4*$AD172+RAND()*$AI177)) -> Inflationary expectations increased sharply | Z177: Inflationary expectations increased sharply | AA177: Inflationary expectations increased sharply | AB177: Inflationary expectations increased sharply | AD177: 9 | AE177: =+AE176 -> 8 | AF177: =+AF176 -> 0.04591610635 | AI177: 5 | AZ177: =+INT($W$8*$V$10*RAND()+AZ176) -> 9
X178: 86.4 | Y178: Large jump in both imports and exports plus trade deficit sharply wider | Z178: Large jump in both imports and exports plus trade deficit sharply wider | AA178: Large jump in both imports and exports plus trade deficit sharply wider | AB178: Large jump in both imports and exports plus trade deficit sharply wider | AD178: 9 | AE178: =+AE177 -> 8 | AF178: =+AF177 -> 0.04591610635 | AI178: 3 | AZ178: =+INT($W$8*$V$10*RAND()+AZ177) -> 96
X179: 128.7 | Y179: Consumer price index expected to surge | Z179: Consumer price index expected to surge | AA179: Consumer price index expected to surge | AB179: Consumer price index expected to surge | AD179: 9 | AE179: =+AE178 -> 8 | AF179: 0.04591610635 | AI179: 2 | AZ179: =+INT($W$8*$V$10*RAND()+AZ178) -> 143
X180: 133.2 | Y180: Much stronger economic growth is currently being forecast | Z180: Much stronger economic growth is currently being forecast | AA180: Much stronger economic growth is currently being forecast | AB180: Much stronger economic growth is currently being forecast | AD180: 9 | AE180: =+AE179 -> 8 | AF180: 0.04591610635 | AI180: 1 | AZ180: =+INT($W$8*$V$10*RAND()+AZ179) -> 148
W181: Period3 | X181: =+(AZ181/300)*$X$18 -> 0 | Y181: =+B02Clue1(INT(0.6*$AD181+0.4*$AD176+RAND()*$AI181)) -> Geopolitical investment concerns are rapidly fading | Z181: =+$Y181 -> Geopolitical investment concerns are rapidly fading | AA181: Geopolitical investment concerns are rapidly fading | AB181: Geopolitical investment concerns are rapidly fading | AD181: 5 | AE181: =INT(0.4*AE176+0.6*(1+RAND()*10)) -> 3 | AF181: =+$AC$14+(AD181-1)*$AC$16+$AC$16*RAND() -> 0.02905357272 | AI181: 7 | AZ181: 0
X182: 77.4 | Y182: Very strong and unexpected surge in the producer price index | Z182: Very strong and unexpected surge in the producer price index | AA182: Very strong and unexpected surge in the producer price index | AB182: Very strong and unexpected surge in the producer price index | AD182: 5 | AE182: =+AE181 -> 3 | AF182: 0.02905357272 | AI182: 5 | AZ182: =+INT($W$8*$V$10*RAND()+AZ181) -> 86
X183: 137.7 | Y183: Much stronger economic growth is currently being forecast | Z183: Much stronger economic growth is currently being forecast | AA183: Much stronger economic growth is currently being forecast | AB183: Much stronger economic growth is currently being forecast | AD183: 5 | AE183: =+AE182 -> 3 | AF183: 0.02905357272 | AI183: 3 | AZ183: =+INT($W$8*$V$10*RAND()+AZ182) -> 153
X184: 144.9 | Y184: Geopolitical investment concerns are rapidly fading | Z184: Geopolitical investment concerns are rapidly fading | AA184: Geopolitical investment concerns are rapidly fading | AB184: Geopolitical investment concerns are rapidly fading | AD184: 5 | AE184: =+AE183 -> 3 | AF184: 0.02905357272 | AI184: 2 | AZ184: =+INT($W$8*$V$10*RAND()+AZ183) -> 161
X185: 198 | Y185: Leading indicators suggest positive economic outlook | Z185: Leading indicators suggest positive economic outlook | AA185: Leading indicators suggest positive economic outlook | AB185: Leading indicators suggest positive economic outlook | AD185: 5 | AE185: =+AE184 -> 3 | AF185: 0.02905357272 | AI185: 1 | AZ185: =+INT($W$8*$V$10*RAND()+AZ184) -> 220
W186: Period4 | X186: =+(AZ186/300)*$X$18 -> 0 | Y186: =+B02Clue1(INT(0.6*$AD186+0.4*$AD181+RAND()*$AI186)) -> Much stronger economic growth is currently being forecast | Z186: Much stronger economic growth is currently being forecast | AA186: Much stronger economic growth is currently being forecast | AB186: Much stronger economic growth is currently being forecast | AD186: 7 | AE186: =INT(0.4*AE181+0.6*(1+RAND()*10)) -> 3 | AF186: =+$AC$14+(AD186-1)*$AC$16+$AC$16*RAND() -> 0.03709992273 | AI186: 7 | AZ186: 0
X187: 29.7 | Y187: Much stronger economic growth is currently being forecast | Z187: Much stronger economic growth is currently being forecast | AA187: Much stronger economic growth is currently being forecast | AB187: Much stronger economic growth is currently being forecast | AD187: 7 | AE187: =+AE186 -> 3 | AF187: 0.03709992273 | AI187: 5 | AZ187: =+INT($W$8*$V$10*RAND()+AZ186) -> 33
X188: 73.8 | Y188: Geopolitical investment concerns are rapidly fading | Z188: Geopolitical investment concerns are rapidly fading | AA188: Geopolitical investment concerns are rapidly fading | AB188: Geopolitical investment concerns are rapidly fading | AD188: 7 | AE188: =+AE187 -> 3 | AF188: 0.03709992273 | AI188: 3 | AZ188: =+INT($W$8*$V$10*RAND()+AZ187) -> 82
X189: 138.6 | Y189: Leading indicators suggest positive economic outlook | Z189: Leading indicators suggest positive economic outlook | AA189: Leading indicators suggest positive economic outlook | AB189: Leading indicators suggest positive economic outlook | AD189: 7 | AE189: =+AE188 -> 3 | AF189: 0.03709992273 | AI189: 2 | AZ189: =+INT($W$8*$V$10*RAND()+AZ188) -> 154
X190: 168.3 | Y190: Fed chairman congressional testimony provides optimism | Z190: Fed chairman congressional testimony provides optimism | AA190: Fed chairman congressional testimony provides optimism | AB190: Fed chairman congressional testimony provides optimism | AD190: 7 | AE190: =+AE189 -> 3 | AF190: 0.03709992273 | AI190: 1 | AZ190: =+INT($W$8*$V$10*RAND()+AZ189) -> 187
W191: Period5 | X191: =+(AZ191/300)*$X$18 -> 0 | Y191: =+B02Clue1(INT(0.6*$AD191+0.4*$AD186+RAND()*$AI191)) -> Large jump in both imports and exports plus trade deficit sharply wider | Z191: Large jump in both imports and exports plus trade deficit sharply wider | AA191: Large jump in both imports and exports plus trade deficit sharply wider | AB191: Large jump in both imports and exports plus trade deficit sharply wider | AD191: 7 | AE191: =INT(0.4*AE186+0.6*(1+RAND()*10)) -> 5 | AF191: =+$AC$14+(AD191-1)*$AC$16+$AC$16*RAND() -> 0.03622426948 | AI191: 7 | AZ191: 0
X192: 54.9 | Y192: Very strong and unexpected surge in the producer price index | Z192: Very strong and unexpected surge in the producer price index | AA192: Very strong and unexpected surge in the producer price index | AB192: Very strong and unexpected surge in the producer price index | AD192: 7 | AE192: =+AE191 -> 5 | AF192: 0.03622426948 | AI192: 5 | AZ192: =+INT($W$8*$V$10*RAND()+AZ191) -> 61
X193: 75.6 | Y193: Indicators are reinforcing a positive economic outlook | Z193: Indicators are reinforcing a positive economic outlook | AA193: Indicators are reinforcing a positive economic outlook | AB193: Indicators are reinforcing a positive economic outlook | AD193: 7 | AE193: =+AE192 -> 5 | AF193: 0.03622426948 | AI193: 3 | AZ193: =+INT($W$8*$V$10*RAND()+AZ192) -> 84
X194: 138.6 | Y194: Geopolitical investment concerns are rapidly fading | Z194: Geopolitical investment concerns are rapidly fading | AA194: Geopolitical investment concerns are rapidly fading | AB194: Geopolitical investment concerns are rapidly fading | AD194: 7 | AE194: =+AE193 -> 5 | AF194: 0.03622426948 | AI194: 2 | AZ194: =+INT($W$8*$V$10*RAND()+AZ193) -> 154
X195: 141.3 | Y195: Indicators are reinforcing a positive economic outlook | Z195: Indicators are reinforcing a positive economic outlook | AA195: Indicators are reinforcing a positive economic outlook | AB195: Indicators are reinforcing a positive economic outlook | AD195: 7 | AE195: =+AE194 -> 5 | AF195: 0.03622426948 | AI195: 1 | AZ195: =+INT($W$8*$V$10*RAND()+AZ194) -> 157
W196: Trial 8 | X196: =+(AZ196/300)*$X$18 -> 0 | Y196: =+B02Clue1(INT($AD196+RAND()*$AI196)) -> Geopolitical investment concerns are rapidly fading | Z196: Geopolitical investment concerns are rapidly fading | AA196: Geopolitical investment concerns are rapidly fading | AB196: Geopolitical investment concerns are rapidly fading | AD196: 6 | AE196: =INT(1+RAND()*10) -> 5 | AF196: =+$AC$14+(AD196-1)*$AC$16+$AC$16*RAND() -> 0.03266902729 | AI196: 7 | AZ196: 0
X197: =+(AZ197/300)*$X$18 -> 54.9 | Y197: =+B02Clue1(INT($AD197+RAND()*$AI197)) -> Fed chairman congressional testimony provides optimism | Z197: Fed chairman congressional testimony provides optimism | AA197: Fed chairman congressional testimony provides optimism | AB197: Fed chairman congressional testimony provides optimism | AD197: 6 | AE197: =+AE196 -> 5 | AF197: 0.03266902729 | AI197: 5 | AZ197: =+INT($W$8*$V$10*RAND()+AZ196) -> 61
X198: 108 | Y198: =+B02Clue1(INT($AD198+RAND()*$AI198)) -> Analyst forecast increased earnings for most industries in the economy | Z198: Analyst forecast increased earnings for most industries in the economy | AA198: Analyst forecast increased earnings for most industries in the economy | AB198: Analyst forecast increased earnings for most industries in the economy | AD198: 6 | AE198: 5 | AF198: 0.03266902729 | AI198: 3 | AZ198: =+INT($W$8*$V$10*RAND()+AZ197) -> 120
X199: 108.9 | Y199: =+B02Clue1(INT($AD199+RAND()*$AI199)) -> Geopolitical investment concerns are rapidly fading | Z199: Geopolitical investment concerns are rapidly fading | AA199: Geopolitical investment concerns are rapidly fading | AB199: Geopolitical investment concerns are rapidly fading | AD199: 6 | AE199: 5 | AF199: 0.03266902729 | AI199: 2 | AZ199: =+INT($W$8*$V$10*RAND()+AZ198) -> 121
X200: 144.9 | Y200: =+B02Clue1(INT($AD200+RAND()*$AI200)) -> Leading indicators suggest positive economic outlook | Z200: Leading indicators suggest positive economic outlook | AA200: Leading indicators suggest positive economic outlook | AB200: Leading indicators suggest positive economic outlook | AD200: 6 | AE200: 5 | AF200: 0.03266902729 | AI200: 1 | AZ200: =+INT($W$8*$V$10*RAND()+AZ199) -> 161
... 925 more rows
